[Event "Reykjavik Open 2022"]
[Site "Reykjavik"]
[Date "2022.04.08"]
[Round "4.23"]
[White "Gregersen, Einar"]
[Black "Rosen, Eric"]
[Result "0-1"]
[ECO "B38"]
[WhiteElo "1801"]
[BlackElo "2356"]
[Annotator "RC"]
[PlyCount "74"]
[EventDate "2022.04.06"]
[EventCountry "ISL"]
[SourceTitle "playchess.com"]
[Source "ChessBase"]
[SourceQuality "1"]
[TimeControl "40/5400+30:1800+30"]

1. e4 {[%emt 0:00:04]} c5 {[%emt 0:00:19]} 2. Nf3 {[%emt 0:00:08]} Nc6 {[%emt 0:00:10]} 3. d4 {[%emt 0:00:11]} cxd4 {[%emt 0:00:13]} 4. Nxd4 {[%emt 0:00:14]} g6 {[%emt 0:00:07]} 5. c4 {[%emt 0:02:01]} Bg7 {[%emt 0:00:26]} 6. Be3 {[%emt 0:01:09]} Nf6 {[%emt 0:00:21]} 7. Nc3 {[%emt 0:02:19]} d6 {[%emt 0:00:39]} 8. Be2 {[%emt 0:05:11]} O-O {[%emt 0:00:28]} 9. O-O {[%emt 0:00:25]} Bd7 {[%emt 0:00:07]} 10. Rc1 {[%emt 0:06:54]} Nxd4 {[%emt 0:02:18]} 11. Bxd4 {[%emt 0:00:23]} Bc6 {[%emt 0:11:37]} 12. f4 {[%emt 0:11:22]} Nd7 {[%emt 0:00:00]} 13. Bxg7 {[%emt 0:05:14]} Kxg7 {[%emt 0:00:00]} 14. Qd4+ {[%emt 0:02:48]} Kg8 {[%emt 0:08:32]} 15. Nd5 {[%emt 0:10:16]} Bxd5 {[%emt 0:10:40]} 16. exd5 {[%emt 0:06:44]} Qb6 {[%emt 0:05:35]} 17. Qxb6 {[%emt 0:02:44]} axb6 {[%emt 0:00:35]} 18. a3 {[%emt 0:03:31]} Nc5 {[%emt 0:02:38]} 19. Rf3 {[%emt 0:01:54]} Rfc8 {[%emt 0:02:59]} 20. Re3 {[%emt 0:01:36]} Kf8 {[%emt 0:02:44]} 21. Rh3 {[%emt 0:02:34]} Kg7 {[%emt 0:03:49]} 22. Re3 {[%emt 0:02:52]} Rc7 {[%emt 0:04:24]} 23. Bf1 {[%emt 0:05:00]} h5 {[%emt 0:05:37]} 24. Rce1 {[%emt 0:01:14]} Kf6 {[%emt 0:01:27]} 25. h3 {[%emt 0:00:46]} h4 {[%emt 0:03:09]} 26. Kf2 {[%emt 0:01:40]} Re8 {[%emt 0:06:12]} 27. Kf3 {[%emt 0:02:36]} g5 {[%emt 0:03:45]} 28. Kg4 {[%emt 0:02:25]} gxf4 {[%emt 0:02:19]} 29. Rf3 {[%emt 0:00:54]} Rg8+ {[%emt 0:02:00]} 30. Kxh4 {[%emt 0:00:42]} e5 {[%emt 0:02:22]} 31. dxe6 {[%emt 0:02:02]} Nxe6 {[%emt 0:00:22]} 32. g3 {[%emt 0:03:00]} Rc5 {[%emt 0:03:25]} 33. gxf4 {[%emt 0:03:19]} Rh5+ {[%emt 0:01:22]} 34. Kxh5 {[%emt 0:00:14]} Ng7+ {[%emt 0:00:02]} 35. Kh4 {[%emt 0:01:39]} Nf5+ {[%emt 0:00:06]} 36. Kh5 {[%emt 0:00:07]} Rh8+ {[%emt 0:00:06]} 37. Kg4 {[%emt 0:00:07]} Rh4# {[%emt 0:00:06]} 0-1

[Event "Reykjavik Open 2022"]
[Site "Reykjavik"]
[Date "2022.04.08"]
[Round "4.24"]
[White "Soham Das"]
[Black "Schultze, Joerg-Martin"]
[Result "1-0"]
[ECO "B10"]
[WhiteElo "2330"]
[BlackElo "1932"]
[Annotator "RC"]
[PlyCount "60"]
[EventDate "2022.04.06"]
[EventCountry "ISL"]
[SourceTitle "playchess.com"]
[Source "ChessBase"]
[SourceQuality "1"]
[TimeControl "40/5400+30:1800+30"]

1. e4 {[%emt 0:09:43]} c6 {[%emt 0:00:16]} 2. Ne2 {[%emt 0:00:10]} d5 {[%emt 0:01:11]} 3. e5 {[%emt 0:02:44]} d4 {[%emt 0:00:14]} 4. c3 {[%emt 0:00:12]} c5 {[%emt 0:01:09]} 5. b4 {[%emt 0:00:09]} Nc6 {[%emt 0:01:28]} 6. bxc5 {[%emt 0:08:40]} d3 {[%emt 0:20:52]} 7. Nf4 {[%emt 0:03:47]} Bf5 {[%emt 0:03:30]} 8. Qf3 {[%emt 0:12:41]} Nxe5 {[%emt 0:05:47]} 9. Qxb7 {[%emt 0:00:04]} Rb8 {[%emt 0:02:06]} 10. Qxa7 {[%emt 0:06:48]} Be4 {[%emt 0:07:34]} 11. Qa4+ {[%emt 0:03:08]} Bc6 {[%emt 0:00:39]} 12. Qd4 {[%emt 0:00:04]} Qxd4 {[%emt 0:07:02]} 13. cxd4 {[%emt 0:01:03]} Rb4 {[%emt 0:00:03]} 14. dxe5 {[%emt 0:17:44]} Re4+ {[%emt 0:00:55]} 15. Be2 {[%emt 0:00:53]} dxe2 {[%emt 0:01:00]} 16. Nxe2 {[%emt 0:00:34]} Rxe5 {[%emt 0:00:35]} 17. d4 {[%emt 0:00:12]} Rd5 {[%emt 0:03:23]} 18. Nbc3 {[%emt 0:01:48]} Rd8 {[%emt 0:00:41]} 19. O-O {[%emt 0:00:11]} Nf6 {[%emt 0:03:30]} 20. Bf4 {[%emt 0:05:59]} g5 {[%emt 0:05:37]} 21. Be5 {[%emt 0:00:40]} Bg7 {[%emt 0:01:15]} 22. Ng3 {[%emt 0:03:03]} Rg8 {[%emt 0:03:38]} 23. Nf5 {[%emt 0:02:05]} Bh8 {[%emt 0:00:24]} 24. Rfe1 {[%emt 0:00:11]} Kf8 {[%emt 0:00:10]} 25. Nxe7 {[%emt 0:01:47]} Kxe7 {[%emt 0:00:42]} 26. Bd6+ {[%emt 0:00:02]} Kd7 {[%emt 0:00:30]} 27. Re7+ {[%emt 0:00:04]} Kc8 {[%emt 0:00:10]} 28. Rc7+ {[%emt 0:00:09]} Kb8 {[%emt 0:00:06]} 29. Rb1+ {[%emt 0:01:37]} Ka8 {[%emt 0:02:19]} 30. Rxc6 {[%emt 0:01:07]} Rd7 {[%emt 0:01:12]} 1-0

[Event "Reykjavik Open 2022"]
[Site "Reykjavik"]
[Date "2022.04.08"]
[Round "4.25"]
[White "De Wachter, Matthias"]
[Black "Finnsson, Johann Arnar"]
[Result "1-0"]
[ECO "A42"]
[WhiteElo "2322"]
[BlackElo "1805"]
[Annotator "ChessBase"]
[PlyCount "65"]
[EventDate "2022.04.06"]
[EventCountry "ISL"]
[SourceTitle "playchess.com"]
[Source "ChessBase"]
[SourceQuality "1"]
[TimeControl "40/5400+30:1800+30"]

1. d4 {[%emt 0:00:06]} g6 {[%emt 0:00:11]} 2. c4 {[%emt 0:00:11]} Bg7 {[%emt 0:00:07]} 3. e4 {[%emt 0:00:12]} e5 {[%emt 0:00:44]} 4. d5 {[%emt 0:03:37]} d6 {[%emt 0:00:39]} 5. Nc3 {[%emt 0:01:45]} Nf6 {[%emt 0:01:02]} 6. Be2 {[%emt 0:08:36]} Nbd7 {[%emt 0:04:06]} 7. Bg5 {[%emt 0:07:15]} a5 {[%emt 0:05:20]} 8. h4 {[%emt 0:10:10]} h6 {[%emt 0:03:28]} 9. Be3 {[%emt 0:01:19]} Nc5 {[%emt 0:06:22]} 10. Qc2 {[%emt 0:04:18]} c6 {[%emt 0:09:17]} 11. h5 {[%emt 0:03:24]} cxd5 {[%emt 0:06:48]} 12. cxd5 {[%emt 0:01:12]} g5 {[%emt 0:05:35]} 13. f3 {[%emt 0:01:13]} O-O {[%emt 0:06:01]} 14. g4 {[%emt 0:02:02]} b6 {[%emt 0:02:54]} 15. Nh3 {[%emt 0:06:23]} Nh7 {[%emt 0:02:18]} 16. Nf2 {[%emt 0:01:29]} Ba6 {[%emt 0:00:55]} 17. O-O {[%emt 0:01:04]} Nf6 {[%emt 0:01:12]} 18. Bxa6 {[%emt 0:03:17]} Rxa6 {[%emt 0:02:41]} 19. a3 {[%emt 0:06:33]} Qd7 {[%emt 0:06:26]} 20. b4 {[%emt 0:02:40]} Nb7 {[%emt 0:00:27]} 21. Qe2 {[%emt 0:01:54]} Raa8 {[%emt 0:08:48]} 22. Bxb6 {[%emt 0:01:36]} Rfc8 {[%emt 0:00:09]} 23. Nb5 {[%emt 0:01:35]} axb4 {[%emt 0:09:10]} 24. axb4 {[%emt 0:01:18]} Rxa1 {[%emt 0:00:28]} 25. Rxa1 {[%emt 0:00:09]} Nxd5 {[%emt 0:04:19]} 26. exd5 {[%emt 0:02:57]} e4 {[%emt 0:00:06]} 27. Nd4 {[%emt 0:01:18]} exf3 {[%emt 0:02:31]} 28. Qxf3 {[%emt 0:00:38]} Qe8 {[%emt 0:02:05]} 29. Rd1 {[%emt 0:01:51]} Rc4 {[%emt 0:01:26]} 30. Nc6 {[%emt 0:01:33]} Rc3 {[%emt 0:01:26]} 31. Rd3 {[%emt 0:01:49]} Qe1+ {[%emt 0:03:13]} 32. Kg2 {[%emt 0:00:14]} Rc4 {[%emt 0:00:25]} 33. Re3 {[%emt 0:02:43]} 1-0

[Event "Reykjavik Open 2022"]
[Site "Reykjavik"]
[Date "2022.04.08"]
[Round "4.26"]
[White "Berdnyk, Mariia"]
[Black "Hauksdottir, Hrund"]
[Result "1-0"]
[ECO "D73"]
[WhiteElo "2287"]
[BlackElo "1737"]
[Annotator "RC"]
[PlyCount "131"]
[EventDate "2022.04.06"]
[EventCountry "ISL"]
[SourceTitle "playchess.com"]
[Source "ChessBase"]
[SourceQuality "1"]
[TimeControl "40/5400+30:1800+30"]

1. d4 {[%emt 0:00:03]} d5 {[%emt 0:00:07]} 2. c4 {[%emt 0:00:03]} c6 {[%emt 0:00:06]} 3. Nf3 {[%emt 0:00:04]} Nf6 {[%emt 0:00:13]} 4. g3 {[%emt 0:00:07]} dxc4 {[%emt 0:01:00]} 5. Bg2 {[%emt 0:00:43]} g6 {[%emt 0:01:34]} 6. O-O {[%emt 0:03:54]} Bg7 {[%emt 0:01:31]} 7. a4 {[%emt 0:07:33]} O-O {[%emt 0:01:37]} 8. Na3 {[%emt 0:00:25]} Bf5 {[%emt 0:07:18]} 9. Nxc4 {[%emt 0:01:08]} Nbd7 {[%emt 0:09:29]} 10. Qb3 {[%emt 0:05:10]} Nb6 {[%emt 0:02:41]} 11. a5 {[%emt 0:00:55]} Nxc4 {[%emt 0:01:51]} 12. Qxc4 {[%emt 0:00:02]} Be4 {[%emt 0:07:25]} 13. Qb3 {[%emt 0:10:20]} b6 {[%emt 0:07:18]} 14. Bf4 {[%emt 0:06:24]} Nd5 {[%emt 0:13:45]} 15. Be5 {[%emt 0:00:41]} e6 {[%emt 0:13:20]} 16. Bxg7 {[%emt 0:04:41]} Kxg7 {[%emt 0:00:09]} 17. Ne5 {[%emt 0:06:05]} Bxg2 {[%emt 0:03:32]} 18. Kxg2 {[%emt 0:00:06]} Ne7 {[%emt 0:00:47]} 19. e3 {[%emt 0:02:05]} bxa5 {[%emt 0:14:50]} 20. Rfc1 {[%emt 0:03:17]} Rc8 {[%emt 0:00:13]} 21. Rc5 {[%emt 0:00:53]} Qb6 {[%emt 0:01:26]} 22. Qc3 {[%emt 0:02:27]} Rfd8 {[%emt 0:01:19]} 23. Nxc6 {[%emt 0:08:11]} Nxc6 {[%emt 0:02:16]} 24. d5+ {[%emt 0:00:05]} Kg8 {[%emt 0:00:13]} 25. dxc6 {[%emt 0:00:14]} Rc7 {[%emt 0:01:36]} 26. Rc1 {[%emt 0:05:23]} Rdc8 {[%emt 0:00:58]} 27. Rc2 {[%emt 0:01:08]} h6 {[%emt 0:03:28]} 28. Qc4 {[%emt 0:01:35]} Kh7 {[%emt 0:00:46]} 29. b3 {[%emt 0:01:32]} Kg8 {[%emt 0:00:54]} 30. Rc3 {[%emt 0:01:37]} Kh7 {[%emt 0:00:23]} 31. h4 {[%emt 0:02:54]} h5 {[%emt 0:01:30]} 32. Qe4 {[%emt 0:00:31]} Kg7 {[%emt 0:00:20]} 33. Qe5+ {[%emt 0:00:38]} Kg8 {[%emt 0:00:19]} 34. Rb5 {[%emt 0:00:19]} Qa6 {[%emt 0:00:32]} 35. Rxa5 {[%emt 0:01:53]} Qb6 {[%emt 0:00:15]} 36. Rb5 {[%emt 0:03:29]} Qa6 {[%emt 0:00:34]} 37. Rc1 {[%emt 0:01:13]} Rxc6 {[%emt 0:00:39]} 38. Ra1 {[%emt 0:00:15]} f6 {[%emt 0:01:33]} 39. Rxa6 {[%emt 0:00:23]} fxe5 {[%emt 0:00:07]} 40. Rxa7 {[%emt 0:00:00]} R8c7 {[%emt 0:00:00]} 41. Rbb7 {[%emt 0:01:07]} Rxb7 {[%emt 0:02:12]} 42. Rxb7 {[%emt 0:02:30]} Rc2 {[%emt 0:03:32]} 43. b4 {[%emt 0:01:36]} Kf8 {[%emt 0:03:09]} 44. b5 {[%emt 0:00:28]} e4 {[%emt 0:00:32]} 45. b6 {[%emt 0:01:11]} Rb2 {[%emt 0:00:27]} 46. Kf1 {[%emt 0:04:56]} Kg8 {[%emt 0:00:53]} 47. Rb8+ {[%emt 0:02:31]} Kf7 {[%emt 0:01:20]} 48. b7 {[%emt 0:00:03]} Kg7 {[%emt 0:00:18]} 49. Ke1 {[%emt 0:00:03]} Kh7 {[%emt 0:00:41]} 50. Kd1 {[%emt 0:00:03]} Kg7 {[%emt 0:00:15]} 51. Kc1 {[%emt 0:00:03]} Rb6 {[%emt 0:00:20]} 52. Kc2 {[%emt 0:00:03]} Kh7 {[%emt 0:00:36]} 53. Kc3 {[%emt 0:00:03]} Kg7 {[%emt 0:00:15]} 54. Kd4 {[%emt 0:00:05]} Rb5 {[%emt 0:03:16]} 55. Kxe4 {[%emt 0:00:11]} e5 {[%emt 0:00:26]} 56. f4 {[%emt 0:00:05]} exf4 {[%emt 0:00:17]} 57. gxf4 {[%emt 0:00:27]} Kh7 {[%emt 0:00:52]} 58. Kd4 {[%emt 0:00:04]} Kg7 {[%emt 0:00:11]} 59. e4 {[%emt 0:00:04]} Rb1 {[%emt 0:00:25]} 60. e5 {[%emt 0:00:13]} Rd1+ {[%emt 0:00:26]} 61. Ke3 {[%emt 0:00:11]} Re1+ {[%emt 0:00:46]} 62. Kf2 {[%emt 0:00:08]} Rb1 {[%emt 0:00:06]} 63. e6 {[%emt 0:00:06]} Rb2+ {[%emt 0:01:38]} 64. Kf3 {[%emt 0:00:08]} Rb3+ {[%emt 0:00:17]} 65. Ke4 {[%emt 0:00:06]} Rb1 {[%emt 0:00:16]} 66. Rd8 {[%emt 0:00:37]} 1-0

[Event "Reykjavik Open 2022"]
[Site "Reykjavik"]
[Date "2022.04.08"]
[Round "4.27"]
[White "Thorhallsson, Throstur"]
[Black "Haugen, Lars Tormod"]
[Result "1-0"]
[ECO "B27"]
[WhiteElo "2414"]
[BlackElo "1710"]
[Annotator "RC"]
[PlyCount "103"]
[EventDate "2022.04.06"]
[EventCountry "ISL"]
[SourceTitle "playchess.com"]
[Source "ChessBase"]
[SourceQuality "1"]
[TimeControl "40/5400+30:1800+30"]

1. e4 {[%emt 0:00:14]} c5 {[%emt 0:01:05]} 2. Nf3 {[%emt 0:00:08]} g6 {[%emt 0:00:30]} 3. Bc4 {[%emt 0:00:34]} Bg7 {[%emt 0:00:34]} 4. c3 {[%emt 0:00:33]} e6 {[%emt 0:03:24]} 5. O-O {[%emt 0:02:58]} Ne7 {[%emt 0:00:17]} 6. Re1 {[%emt 0:00:52]} O-O {[%emt 0:01:48]} 7. d4 {[%emt 0:01:48]} cxd4 {[%emt 0:00:13]} 8. Nxd4 {[%emt 0:04:24]} d5 {[%emt 0:04:19]} 9. exd5 {[%emt 0:00:35]} Nxd5 {[%emt 0:09:34]} 10. Nf3 {[%emt 0:00:24]} Nc6 {[%emt 0:07:57]} 11. Na3 {[%emt 0:05:19]} Nb6 {[%emt 0:08:15]} 12. Bd3 {[%emt 0:00:10]} e5 {[%emt 0:03:12]} 13. Be3 {[%emt 0:03:30]} Re8 {[%emt 0:03:12]} 14. Qc2 {[%emt 0:07:07]} Nd5 {[%emt 0:16:25]} 15. Bg5 {[%emt 0:02:07]} Bf6 {[%emt 0:04:42]} 16. Bd2 {[%emt 0:05:17]} Bg4 {[%emt 0:02:53]} 17. Be4 {[%emt 0:00:15]} Rc8 {[%emt 0:04:25]} 18. Qb3 {[%emt 0:09:38]} Nb6 {[%emt 0:04:50]} 19. Be3 {[%emt 0:05:46]} Be6 {[%emt 0:08:43]} 20. Qb5 {[%emt 0:01:27]} Qc7 {[%emt 0:04:30]} 21. h4 {[%emt 0:05:14]} Bg7 {[%emt 0:03:04]} 22. Ng5 {[%emt 0:02:30]} Bf5 {[%emt 0:00:30]} 23. Bxb6 {[%emt 0:04:40]} axb6 {[%emt 0:00:52]} 24. Bd5 {[%emt 0:02:33]} Re7 {[%emt 0:00:58]} 25. Nc4 {[%emt 0:01:28]} h6 {[%emt 0:01:18]} 26. Ne4 {[%emt 0:01:24]} Be6 {[%emt 0:04:16]} 27. Nxb6 {[%emt 0:04:03]} Rd8 {[%emt 0:00:37]} 28. Rad1 {[%emt 0:01:24]} Kh7 {[%emt 0:01:19]} 29. h5 {[%emt 0:05:51]} g5 {[%emt 0:00:29]} 30. Ng3 {[%emt 0:02:16]} Na7 {[%emt 0:00:31]} 31. Qb3 {[%emt 0:04:20]} Nc8 {[%emt 0:00:29]} 32. Bxe6 {[%emt 0:02:24]} fxe6 {[%emt 0:00:23]} 33. Rxd8 {[%emt 0:00:56]} Qxd8 {[%emt 0:00:22]} 34. Nxc8 {[%emt 0:00:21]} Qxc8 {[%emt 0:00:05]} 35. Rd1 {[%emt 0:00:36]} Rd7 {[%emt 0:00:54]} 36. Ne4 {[%emt 0:01:06]} Qc6 {[%emt 0:00:58]} 37. Rxd7 {[%emt 0:01:10]} Qxd7 {[%emt 0:00:16]} 38. Qc2 {[%emt 0:02:00]} Kh8 {[%emt 0:00:16]} 39. Qd2 {[%emt 0:04:08]} Qf7 {[%emt 0:00:41]} 40. Ng3 {[%emt 0:00:00]} e4 {[%emt 0:00:00]} 41. Qe2 {[%emt 0:07:23]} Be5 {[%emt 0:12:20]} 42. Nxe4 {[%emt 0:01:51]} Qf4 {[%emt 0:01:33]} 43. g3 {[%emt 0:00:47]} Qf5 {[%emt 0:01:08]} 44. Qd3 {[%emt 0:04:06]} b6 {[%emt 0:03:17]} 45. a4 {[%emt 0:00:38]} g4 {[%emt 0:00:59]} 46. b4 {[%emt 0:00:38]} Bg7 {[%emt 0:01:08]} 47. c4 {[%emt 0:01:48]} Kg8 {[%emt 0:06:45]} 48. c5 {[%emt 0:00:58]} bxc5 {[%emt 0:00:49]} 49. Nxc5 {[%emt 0:01:44]} Qe5 {[%emt 0:02:39]} 50. Qc4 {[%emt 0:01:07]} Qe1+ {[%emt 0:01:26]} 51. Kg2 {[%emt 0:00:14]} Qd1 {[%emt 0:02:22]} 52. Qxe6+ {[%emt 0:00:21]} 1-0

[Event "Reykjavik Open 2022"]
[Site "Reykjavik"]
[Date "2022.04.08"]
[Round "4.28"]
[White "Romanishin, Oleg M"]
[Black "Marzik, Hans"]
[Result "1-0"]
[ECO "E63"]
[WhiteElo "2415"]
[BlackElo "2050"]
[Annotator "RC"]
[PlyCount "57"]
[EventDate "2022.04.06"]
[EventCountry "ISL"]
[SourceTitle "playchess.com"]
[Source "ChessBase"]
[SourceQuality "1"]
[TimeControl "40/5400+30:1800+30"]

1. Nf3 {[%emt 0:00:05]} Nf6 {[%emt 0:00:03]} 2. g3 {[%emt 0:00:07]} g6 {[%emt 0:00:06]} 3. Bg2 {[%emt 0:00:07]} Bg7 {[%emt 0:00:05]} 4. c4 {[%emt 0:00:13]} O-O {[%emt 0:00:04]} 5. O-O {[%emt 0:01:27]} d6 {[%emt 0:00:38]} 6. d4 {[%emt 0:00:07]} Nc6 {[%emt 0:02:01]} 7. Nc3 {[%emt 0:00:16]} a6 {[%emt 0:00:23]} 8. b3 {[%emt 0:00:08]} Rb8 {[%emt 0:01:06]} 9. Bb2 {[%emt 0:00:23]} b5 {[%emt 0:00:16]} 10. cxb5 {[%emt 0:00:07]} axb5 {[%emt 0:00:03]} 11. Rc1 {[%emt 0:00:07]} b4 {[%emt 0:04:31]} 12. Nb1 {[%emt 0:00:14]} Bd7 {[%emt 0:00:34]} 13. d5 {[%emt 0:20:23]} Na7 {[%emt 0:04:43]} 14. Ne1 {[%emt 0:01:48]} e6 {[%emt 0:06:34]} 15. dxe6 {[%emt 0:01:37]} fxe6 {[%emt 0:00:27]} 16. Qd2 {[%emt 0:13:01]} Rb6 {[%emt 0:21:10]} 17. Nd3 {[%emt 0:08:09]} c5 {[%emt 0:26:16]} 18. e4 {[%emt 0:09:35]} e5 {[%emt 0:03:52]} 19. f4 {[%emt 0:00:11]} Bb5 {[%emt 0:06:46]} 20. a4 {[%emt 0:04:57]} bxa3 {[%emt 0:03:37]} 21. Nxa3 {[%emt 0:00:07]} Bc6 {[%emt 0:00:10]} 22. Qc2 {[%emt 0:10:37]} Ng4 {[%emt 0:08:06]} 23. Nc4 {[%emt 0:00:25]} Rb8 {[%emt 0:03:42]} 24. fxe5 {[%emt 0:02:48]} Rxf1+ {[%emt 0:01:28]} 25. Rxf1 {[%emt 0:00:27]} Nb5 {[%emt 0:00:53]} 26. h3 {[%emt 0:02:43]} Nxe5 {[%emt 0:00:29]} 27. Ncxe5 {[%emt 0:00:13]} dxe5 {[%emt 0:00:31]} 28. Qc4+ {[%emt 0:04:40]} Kh8 {[%emt 0:00:39]} 29. Nxe5 {[%emt 0:00:13]} 1-0

[Event "Reykjavik Open 2022"]
[Site "Reykjavik"]
[Date "2022.04.08"]
[Round "4.29"]
[White "Briem, Stephan"]
[Black "Baskin, Robert"]
[Result "1/2-1/2"]
[ECO "E46"]
[WhiteElo "2039"]
[BlackElo "2383"]
[Annotator "RC"]
[PlyCount "95"]
[EventDate "2022.04.06"]
[EventCountry "ISL"]
[SourceTitle "playchess.com"]
[Source "ChessBase"]
[SourceQuality "1"]
[TimeControl "40/5400+30:1800+30"]

1. d4 {[%emt 0:00:04]} Nf6 {[%emt 0:00:18]} 2. c4 {[%emt 0:01:12]} e6 {[%emt 0:00:11]} 3. Nc3 {[%emt 0:00:49]} Bb4 {[%emt 0:00:09]} 4. e3 {[%emt 0:00:32]} O-O {[%emt 0:00:15]} 5. Nge2 {[%emt 0:00:28]} Re8 {[%emt 0:00:20]} 6. a3 {[%emt 0:00:37]} Bf8 {[%emt 0:00:08]} 7. Ng3 {[%emt 0:00:23]} d5 {[%emt 0:00:25]} 8. Be2 {[%emt 0:00:49]} b6 {[%emt 0:00:18]} 9. O-O {[%emt 0:00:57]} Bb7 {[%emt 0:00:16]} 10. b4 {[%emt 0:13:54]} dxc4 {[%emt 0:00:27]} 11. Bxc4 {[%emt 0:00:32]} Nbd7 {[%emt 0:00:09]} 12. Bb2 {[%emt 0:01:06]} c5 {[%emt 0:00:26]} 13. dxc5 {[%emt 0:00:51]} bxc5 {[%emt 0:00:30]} 14. b5 {[%emt 0:00:56]} Ne5 {[%emt 0:00:28]} 15. Be2 {[%emt 0:00:46]} c4 {[%emt 0:00:58]} 16. Qc2 {[%emt 0:11:39]} Qc7 {[%emt 0:01:28]} 17. Nce4 {[%emt 0:17:46]} Nxe4 {[%emt 0:12:57]} 18. Nxe4 {[%emt 0:00:03]} Rac8 {[%emt 0:00:20]} 19. Ng5 {[%emt 0:12:11]} f5 {[%emt 0:08:23]} 20. Qc3 {[%emt 0:01:52]} Ng4 {[%emt 0:03:23]} 21. Bxg4 {[%emt 0:06:16]} fxg4 {[%emt 0:00:27]} 22. Qc2 {[%emt 0:00:41]} g6 {[%emt 0:01:37]} 23. Bc3 {[%emt 0:13:10]} Bg7 {[%emt 0:13:19]} 24. Bxg7 {[%emt 0:05:56]} Qxg7 {[%emt 0:00:15]} 25. Rad1 {[%emt 0:03:35]} c3 {[%emt 0:09:21]} 26. Rd4 {[%emt 0:02:17]} Rc5 {[%emt 0:16:09]} 27. Ne4 {[%emt 0:02:23]} Rh5 {[%emt 0:03:33]} 28. Rd7 {[%emt 0:01:05]} Qe5 {[%emt 0:02:12]} 29. Ng3 {[%emt 0:00:19]} Bc8 {[%emt 0:02:39]} 30. Rd3 {[%emt 0:01:23]} Rg5 {[%emt 0:02:43]} 31. Rxc3 {[%emt 0:00:02]} Bd7 {[%emt 0:00:20]} 32. a4 {[%emt 0:00:32]} h5 {[%emt 0:01:43]} 33. Rc7 {[%emt 0:00:55]} Qg7 {[%emt 0:02:28]} 34. Ne4 {[%emt 0:00:44]} Rd5 {[%emt 0:00:17]} 35. Nc5 {[%emt 0:00:27]} Rc8 {[%emt 0:01:14]} 36. Nxd7 {[%emt 0:00:44]} Rxc7 {[%emt 0:00:07]} 37. Qxc7 {[%emt 0:00:21]} Rxd7 {[%emt 0:00:04]} 38. Qc8+ {[%emt 0:00:15]} Kh7 {[%emt 0:00:07]} 39. Rc1 {[%emt 0:00:30]} Kh6 {[%emt 0:01:47]} 40. a5 {[%emt 0:00:00]} Qb2 {[%emt 0:00:00]} 41. b6 {[%emt 0:19:52]} axb6 {[%emt 0:03:12]} 42. axb6 {[%emt 0:01:33]} Rf7 {[%emt 0:01:37]} 43. Rf1 {[%emt 0:02:35]} Qxb6 {[%emt 0:00:18]} 44. Qh8+ {[%emt 0:00:11]} Rh7 {[%emt 0:02:04]} 45. Qf8+ {[%emt 0:00:07]} Rg7 {[%emt 0:00:03]} 46. Qh8+ {[%emt 0:03:06]} Rh7 {[%emt 0:00:06]} 47. Qf8+ {[%emt 0:00:02]} Rg7 {[%emt 0:00:04]} 48. Qh8+ {[%emt 0:05:59]} 1/2-1/2